Cogmind - Beta 10.1 @@@ ROGUE MODE // 2020.09.22 @ 16:37:48 Player: Cracklepappy Result: Destroyed by D-53 Grenadier with Mini Grenade Launcher Performance ------------- Evolutions (0) 0 Regions Visited (4) 800 Robots Destroyed (54) 270 Value Destroyed (743) 743 Prototype IDs (2) 40 Alien Tech Used (0) 0 Bonus (0) 0 TOTAL SCORE: 1853 Bonus ------- None Cogmind --------- Core Integrity 0/250 Matter 300/300 Energy 265/265 System Corruption 1% Temperature Cool (0) Movement Treading (200) Ox2 Location -9/Mines Parts ------- > --- POWER (1) -------- Improved Ion Engine > --- PROPULSION (2) --- Light Treads Light Treads > --- UTILITY (2) ------ Humpback > --- WEAPON (2) ------- Light Assault Rifle Rocket Launcher > --- INVENTORY (24) --- Light Treads Light Treads Improved Heat Sink Medium Storage Unit Medium Storage Unit High-capacity Storage Unit High-capacity Storage Unit Humpback Humpback Humpback Humpback Large Battery (300) Experimental Sensor Array Improved Terrain Scanner Particle Gun Light Assault Rifle Mini Grenade Launcher Mining Laser Plasma Cutter Katana Peak State ------------ > --- POWER ------------ Light Angular Momentum Engine > --- PROPULSION ------- Light Treads Light Treads > --- UTILITY ---------- Large Storage Unit Large Storage Unit > --- WEAPON ----------- Beam Rifle Assault Rifle > --- INVENTORY -------- Improved Ion Engine Light Treads Light Treads Light Treads Light Treads Improved Heat Sink Medium Storage Unit Medium Storage Unit Large Storage Unit Large Storage Unit Large Battery Improved Terrain Scanner Beam Rifle Mining Laser Plasma Cutter [Rating: 14] Favorites ----------- Power Light Angular Momentum Engine Engine Light Angular Momentum Engine Propulsion Light Treads Treads Light Treads Wheel Wheel Utility Large Storage Unit Device Improved Terrain Scanner Storage Large Storage Unit Protection Utility Shielding Weapon Assault Rifle Energy Gun Medium Laser Ballistic Gun Assault Rifle Launcher Rocket Launcher Special Weapon Plasma Cutter Build | -11 -10 -10 -10 -9 ------- Run | Scr Mat Min Exi Min Slots Evolved . | . . . . . Power . | . . . . . Propulsion . | . . . . . Utility . | . . . . . Weapon . | . . . . . Parts Attached 31 | 9 10 3 4 5 Power 5 | 2 1 1 . 1 Engine 5 | 2 1 1 . 1 Core . | . . . . . Reactor . | . . . . . Propulsion 6 | 2 2 1 . 1 Treads 5 | 1 2 1 . 1 Leg . | . . . . . Wheel 1 | 1 . . . . Hover . | . . . . . Flight . | . . . . . Utility 10 | 2 6 . 2 . Device 1 | 1 . . . . Storage 8 | 1 5 . 2 . Processor . | . . . . . Hackware . | . . . . . Protection 1 | . 1 . . . Artifact . | . . . . . Weapon 10 | 3 1 1 2 3 Energy Gun 4 | 2 . 1 . 1 Energy Cannon . | . . . . . Ballistic Gun 3 | 1 . . 2 . Ballistic Cannon . | . . . . . Launcher 2 | . 1 . . 1 Special Weapon 1 | . . . . 1 Impact Weapon . | . . . . . Slashing Weapon . | . . . . . Piercing Weapon . | . . . . . Special Melee Weapon . | . . . . . Unidentified Prototypes . | . . . . . Parts Lost 7 | . 2 1 . 4 Power 2 | . 1 . . 1 Propulsion 2 | . 1 . . 1 Utility . | . . . . . Weapon 3 | . . 1 . 2 Highest Loss Streak 3 | . 2 1 . 3 Average Slot Usage (%) 86 | . 99 99 61 84 Engine 13 | . 14 13 14 13 Treads 26 | . 16 28 28 27 Wheel 1 | . 10 . . . Storage 20 | . 23 28 18 14 Energy Gun 2 | . 7 3 . . Ballistic Gun 11 | . 14 14 . 14 Launcher 7 | . 6 10 . 11 Naked Turns . | . . . . . Heaviest Build 93 | 12 42 46 92 93 Greatest Support 40 | 20 40 40 40 40 Greatest Overweight (x) 3 | 1 3 1 2 2 Average Overweight (x) 1 | . 1 1 1 2 Largest Inventory Capacity 24 | 6 16 16 24 24 Average Capacity 18 | 5 12 16 19 24 Most Carried 24 | 6 16 16 24 24 Average Carried 17 | 4 12 15 17 21 Final Capacity 24 | 6 16 16 24 24 Final Carried 24 | 6 14 16 22 24 Class Distribution -------------------- 53% | Mutant 46% | Hauler-Mutant Dominant Class ---------------- Mutant | -10/Materials Mutant | -10/Mines Hauler-Mutant | -10/Exiles Hauler-Mutant | -9/Mines Resources | -11 -10 -10 -10 -9 ----------- Run | Scr Mat Min Exi Min Matter Collected 993 | 280 229 175 37 272 Remotely . | . . . . . Salvage Created 934 | 177 370 135 . 252 Parts 100 | 15 43 17 . 25 Haulers Intercepted 2 | . 2 . . . Recyclers Shooed . | . . . . . Parts Field Recycled . | . . . . . Retrieved Matter . | . . . . . Parts Self-Destructed . | . . . . . Prevented . | . . . . . Kills | -11 -10 -10 -10 -9 ------- Run | Scr Mat Min Exi Min Combat Hostiles Destroyed 37 | . 11 11 . 15 Guns 15 | . 8 4 . 3 Cannons 1 | . . . . 1 AOE 21 | . 3 7 . 11 Classes Destroyed 10 | 2 5 . . 3 Worker 2 | . . . . 2 Builder 2 | . 2 . . . Tunneler 6 | 5 1 . . . Hauler 2 | . 2 . . . Recycler 2 | 1 . . . 1 Watcher 3 | . 3 . . . Swarmer 25 | . 8 9 . 8 Grunt 8 | . 3 2 . 3 Duelist 1 | . . . . 1 Assembled 3 | . . . . 3 Best Kill Streak 11 | 6 5 3 . 11 Combat Bots Only 8 | . 3 3 . 8 Max Kills in Single Turn 3 | 1 2 3 . 3 Gunslinging 1 | . . 1 . . Exploded 3 | . 1 3 . 3 Melee . | . . . . . Uniques/NPCs Destroyed . | . . . . . Combat | -11 -10 -10 -10 -9 -------- Run | Scr Mat Min Exi Min Damage Taken 1497 | 40 478 161 . 818 Core 267 | 40 107 24 . 96 Absorbed by Shields . | . . . . . Core Remaining (%) 84 | 84 . . . . Volleys Fired 95 | 13 44 8 . 30 Largest 2 | 1 2 2 . 2 Hottest 76 | 40 70 76 . 76 Shots Fired 168 | 13 82 16 . 57 Gun 131 | 13 70 12 . 36 Cannon . | . . . . . Launcher 32 | . 12 4 . 16 Special 5 | . . . . 5 Kinetic 84 | . 44 8 . 32 Thermal 39 | . 26 4 . 9 Explosive 32 | . 12 4 . 16 Electromagnetic 13 | 13 . . . . Robot Hit Streak 8 | 2 8 7 . 7 Robot Miss Streak 7 | 2 7 1 . 4 Penetration Max . | . . . . . Secondary Targets 4 | . 3 1 . . Max Gunslinging Chain 1 | . 1 1 . . Shots Hit Robots 92 | 7 43 12 . 30 Core Hits 73 | 7 25 13 . 28 Critical Hits . | . . . . . Critical Kills . | . . . . . Critical Parts Destroyed . | . . . . . Melee Attacks . | . . . . . Impact . | . . . . . Slashing . | . . . . . Piercing . | . . . . . Sneak Attacks . | . . . . . Combat Hostiles . | . . . . . Follow-up Attacks . | . . . . . Damage Inflicted 2706 | 164 947 439 . 1156 Guns 841 | 121 445 114 . 161 Cannons . | . . . . . Explosions 1818 | 43 502 325 . 948 Melee . | . . . . . Ramming . | . . . . . Kinetic 486 | . 269 85 . 132 Thermal 324 | 43 176 29 . 76 Explosive 1775 | . 502 325 . 948 Electromagnetic 121 | 121 . . . . Impact . | . . . . . Slashing . | . . . . . Piercing . | . . . . . Highest Corruption 1 | . . . . 1 Average Corruption 1 | . . . . 1 Corruption Purged . | . . . . . Effects 4 | . . . . 4 Message Errors 1 | . . . . 1 Energy Discharges 1 | . . . . 1 Data Loss (minor) 2 | . . . . 2 Overload Shots . | . . . . . Overflow Damage 46 | . 22 9 . 15 Projectiles . | . . . . . Explosions 46 | . 22 9 . 15 Melee . | . . . . . Knockbacks . | . . . . . Impact . | . . . . . Kinetic . | . . . . . Secondary . | . . . . . Self-Inflicted Damage 242 | 40 60 40 . 102 Shots 9 | 1 2 2 . 4 Rammed . | . . . . . Targets Rammed . | . . . . . Kicked . | . . . . . Crushed . | . . . . . Highest Temperature 63 | 12 63 54 . 62 Average Temperature 20 | 12 19 26 . 19 Received Heat Transfer 120 | . 72 27 . 21 Siege Activations . | . . . . . Robots Corrupted . | . . . . . Combat Hostiles . | . . . . . Parts Fried 1 | 1 . . . . Impact Corruptions . | . . . . . Robots Melted . | . . . . . Combat Hostiles . | . . . . . Parts Melted 2 | . 2 . . . Heat Transferred 864 | 50 518 74 . 222 Parts Sabotaged . | . . . . . Parts Stolen . | . . . . . Parts Stripped . | . . . . . Power Chain Reactions 1 | 1 . . . . Missiles Intercepted . | . . . . . Alert | -11 -10 -10 -10 -9 ------- Run | Scr Mat Min Exi Min Peak Influence 310 | 30 266 246 . 310 Initial 64 | . 19 64 . . Average 105 | 12 129 98 . 107 Maximum Alert Level 1 | . 1 1 . 1 Low Security (%) 92 | 100 91 91 . 92 Level 1 7 | . 8 8 . 7 Level 2 . | . . . . . Level 3 . | . . . . . Level 4 . | . . . . . Level 5 . | . . . . . High Security . | . . . . . Max Security . | . . . . . Squads Dispatched 6 | . 5 . . 1 Investigation 1 | . 1 . . . Extermination . | . . . . . Reinforcement 5 | . 4 . . 1 Assault . | . . . . . Garrison . | . . . . . Intercept . | . . . . . Construction Impeded 1 | . . . . 1 Haulers Reinforced . | . . . . . Stealth | -11 -10 -10 -10 -9 --------- Run | Scr Mat Min Exi Min Distress Signals 1 | . . . . 1 Communications Jammed . | . . . . . Distress Signals . | . . . . . Times Spotted 49 | . 21 12 . 16 Peak Tracking Total 5 | . 5 3 . 4 Tactical Retreats 2 | . 2 . . . Traps | -11 -10 -10 -10 -9 ------- Run | Scr Mat Min Exi Min Traps Triggered 2 | . 2 . . . Indirectly . | . . . . . Trap Hack Attempts . | . . . . . Triggered . | . . . . . Disarmed . | . . . . . Reprogrammed . | . . . . . Reused . | . . . . . Traps Extracted . | . . . . . Installed . | . . . . . Triggered . | . . . . . Machines | -11 -10 -10 -10 -9 ---------- Run | Scr Mat Min Exi Min Machines Disabled 3 | . 1 1 . 1 Max in Single Turn 1 | . 1 1 . 1 Machines Sabotaged . | . . . . . Garrisons Compromised . | . . . . . Overloaded Fab Kills . | . . . . . Fab Network Shutdowns . | . . . . . Hacking | -11 -10 -10 -10 -9 --------- Run | Scr Mat Min Exi Min Machines Accessed 7 | . 5 1 . 1 Terminals 6 | . 4 1 . 1 Fabricators . | . . . . . Repair Stations . | . . . . . Recycling Units 1 | . 1 . . . Scanalyzers . | . . . . . Garrison Access . | . . . . . Total Hacks 26 | . 20 3 . 3 Successful 16 | . 12 3 . 1 Failed 9 | . 7 . . 2 Catastrophic 2 | . 2 . . . Database Lockouts 1 | . 1 . . . Manual 20 | . 16 2 . 2 Terminals 25 | . 19 3 . 3 Fabricators . | . . . . . Repair Stations . | . . . . . Recycling Units 1 | . 1 . . . Scanalyzers . | . . . . . Garrison Access . | . . . . . Terminal Hacks 10 | . 7 2 . 1 Part Schematic 2 | . 1 1 . . Prototype ID Bank 1 | . 1 . . . Alert Level 1 | . 1 . . . Unreport Threat 1 | . 1 . . . Recall Investigation 1 | . 1 . . . Hauler Manifests 1 | . 1 . . . Zone Layout 3 | . 1 1 . 1 Fabricator Hacks . | . . . . . Repair Station Hacks . | . . . . . Recycling Unit Hacks . | . . . . . Scanalyzer . | . . . . . Garrison Access Hacks . | . . . . . Unauthorized Hacks 6 | . 5 1 . . Terminals 5 | . 4 1 . . Track 2 | . 1 1 . . Botnet 3 | . 3 . . . Fabricators . | . . . . . Repair Stations . | . . . . . Recycling Units 1 | . 1 . . . Tunnel 1 | . 1 . . . Scanalyzers . | . . . . . Garrison Access . | . . . . . Data Cores Recovered . | . . . . . Used . | . . . . . Hacking Detections 6 | . 4 1 . 1 Full Trace Events . | . . . . . Feedback Events . | . . . . . Feedback Blocked . | . . . . . Robot Schematics Acquired . | . . . . . Robots Built . | . . . . . Matter . | . . . . . Time . | . . . . . Total Robot Build Rating . | . . . . . Part Schematics Acquired 2 | . 1 1 . . Parts Built . | . . . . . Matter . | . . . . . Time . | . . . . . Total Part Build Rating . | . . . . . Parts Repaired . | . . . . . Time . | . . . . . Parts Recycled . | . . . . . Recycled Matter . | . . . . . Retrieved Matter . | . . . . . Retrieved Components . | . . . . . Parts Scanalyzed . | . . . . . Part Schematics Acquired . | . . . . . Parts Damaged . | . . . . . Bothacking | -11 -10 -10 -10 -9 ------------ Run | Scr Mat Min Exi Min Used RIF Installer . | . . . . . Robots Hacked . | . . . . . Non-combat . | . . . . . Combat . | . . . . . Robot Hacks Applied . | . . . . . Relay Couplers Released . | . . . . . Robots Rewired . | . . . . . Allies Hacked . | . . . . . Hacks Repelled . | . . . . . Allies | -11 -10 -10 -10 -9 -------- Run | Scr Mat Min Exi Min Total Allies . | . . . . . Largest Group . | . . . . . Highest-Rated Group . | . . . . . Highest-Rated Ally . | . . . . . Total Orders . | . . . . . Ally Attacks . | . . . . . Total Damage . | . . . . . Kills . | . . . . . Allies Corrupted . | . . . . . Allies Melted . | . . . . . Intel | -11 -10 -10 -10 -9 ------- Run | Scr Mat Min Exi Min Robot Analysis Total . | . . . . . Derelict Logs Recovered 2 | . . 2 . . Drone Launches . | . . . . . Drone Recoveries . | . . . . . Exploration | -11 -10 -10 -10 -9 ------------- Run | Scr Mat Min Exi Min Turns Passed 3490 | 112 584 876 722 1196 Spaces Moved 1774 | 75 380 464 368 487 Core 1 | 1 . . . . Treads 1392 | 1 72 464 368 487 Legs . | . . . . . Wheels 381 | 73 308 . . . Hover . | . . . . . Flight . | . . . . . Fastest Speed 50 | 50 90 180 160 200 Average Speed 168 | 88 112 180 188 200 Slowest Speed 200 | 160 180 180 200 200 Overloaded Moves . | . . . . . Propulsion Burnouts . | . . . . . Robots Hopped . | . . . . . Cave-ins Triggered . | . . . . . Exploration Rate (%) 64 | 3 77 90 59 94 Regions Visited 4 Branch Regions 3 Pre-discovered Areas 3 | . 1 2 . . Known Exits Taken . | . . . . . Unknown Exits Taken 4 | 1 1 1 1 . Scrap Searched 2 | . . . . 2 Spaces Dug . | . . . . . Terrain Destroyed 242 | 5 72 33 . 132 Melee . | . . . . . Projectile . | . . . . . AOE 242 | 5 72 33 . 132 Terrain Rammed . | . . . . . Walls Destroyed . | . . . . . Machines Disabled . | . . . . . Actions | -11 -10 -10 -10 -9 --------- Run | Scr Mat Min Exi Min Total 2107 | 104 458 490 401 654 Wait 134 | . 1 9 . 124 Move 1770 | 74 379 463 367 487 Hop . | . . . . . Pick Up 52 | 8 13 4 20 7 Fast Attach 12 | 5 4 1 2 . Attach 11 | 2 2 1 2 4 Detach 1 | . . . 1 . Swap 8 | 2 4 1 . 1 Drop 24 | . 11 3 9 1 Fire 95 | 13 44 8 . 30 Melee . | . . . . . Ram . | . . . . . Kick . | . . . . . Crush . | . . . . . Escape Stasis . | . . . . . Rewire . | . . . . . Trap . | . . . . . Miscellaneous . | . . . . . Route ------- -11/Scrapyard -10/Materials (discovered 4 exits: [*Mat x3] / *Min) -10/Mines (discovered 3 exits: [*Mat x2] / [*Exi]) -10/Exiles -9/Mines (discovered 2 exits: [*Mat x2]) History --------- Turn | Location | Event 23 | -11/Scrapyard | Discovered new exit (range 16) 113 | -11/Scrapyard | Entered Materials 134 | -10/Materials | Central database locked down 202 | -10/Materials | Discovered new exit (range 11) 270 | -10/Materials | Discovered new exit (range 13) 322 | -10/Materials | Build established: Mutant 539 | -10/Materials | Discovered new exit (range 13) 598 | -10/Materials | Core integrity fell below 50% 667 | -10/Materials | Discovered new exit (range 6) 697 | -10/Materials | Entered Mines 764 | -10/Mines | Joined a pair of Derelicts in attacking an 0b10 outpost 915 | -10/Mines | Learned location of Zion (-6) 1043 | -10/Mines | Discovered new exit (range 12) 1308 | -10/Mines | Deemed a non-threat by the Exiles lab entrance 1308 | -10/Mines | Discovered new exit (range 5) 1456 | -10/Mines | Discovered new exit (range 6) 1573 | -10/Mines | Entered Exiles 1618 | -10/Exiles | Met 8R-AWN 1649 | -10/Exiles | Met EX-HEX 1757 | -10/Exiles | Met EX-DEC 2177 | -10/Exiles | Build established: Hauler-Mutant 2249 | -10/Exiles | Discovered new exit (range 10) 2295 | -10/Exiles | Entered Mines 2296 | -9/Mines | Assembled infested the area 2383 | -9/Mines | Core integrity fell below 20% 2430 | -9/Mines | Lost 3 parts (1p1n1w) 2491 | -9/Mines | Received a Rocket Launcher from a helpful Derelict 2679 | -9/Mines | Found a damaged Exp. Sensor Array with a note attached 2683 | -9/Mines | Found Prototype Device 2857 | -9/Mines | Destroyed 8 combat bots 3111 | -9/Mines | Discovered new exit (range 12) 3233 | -9/Mines | Discovered new exit (range 14) 3491 | -9/Mines | Destroyed by D-53 Grenadier with Mini Grenade Launcher Last Messages --------------- 03233_ EXIT=FOUND 03239_ System corrupted: Component data lost. 03281_ Searching scrap... 03281_ Found Wheel. 03281_ Found Mni. Grenade Launcher. 03281_ Found ECM Suite. 03281_ Found 15 Matter. 03282_ Acquired 9 matter. 03285_ Dropped Lgt. Assault Rifle. 03286_ Acquired Mni. Grenade Launcher. 03368_ U-05 Engineer builds a Door. 03370_ U-05 Engineer lays Concrete. 03371_ K-01 Serf collects debris. 03373_ U-05 Engineer lays Concrete. 03375_ K-01 Serf collects debris. 03375_ U-05 Engineer lays Concrete. 03377_ U-05 Engineer builds a Wall. 03378_ U-05 Engineer lays Concrete. 03379_ K-01 Serf collects debris. 03380_ U-05 Engineer lays Concrete. Map ----- +----------------------------------------------------+ | | | | | ??????????????????????????????????????? | | ??????????????????????????????????????? | | ??????????????????????????????????????? | | ????###???????????????????????????????? | | ???## ##?#####????????????????????????? | | ???# ### ##???????????????????????? | | ???# ####????????????????????? | | ???# ##???????????????????? | | ???## #???????????????????? | | ????#### ## #???????????????????? | | ???????## #### #??????????????????? | | ????????# ##??## #????????????????? | | ??????### #????## ??????????????? | | ??????# ######? ????????????? | | ??????# ???????????? | | ??????# ########?# ##### #??????????? | | ??????# #?????????###?????#??????????? | | ??????# #????????????????????????????? | | ??????# ##???????????????????????????? | | ??????# ##???????????????????#??????? | | ????### #####???????????##? #??????? | | ???## #?????????#### #??????? | | ???# ## #???####### ########### | | ???# ###@##### | | ???# #?#[%= " ######### | | ??## ### #### #?# ##?# | | ??# ##*#??# ## ### #?# | | ??# ==%##?## ######## #?# | | ??# [ k###### #??### #??? | | ??## =d% ## ##### #??? | | ???## [%#### ## =[ ##??? | | ????### =##??# ##### ##%* ##???? | | ??????### ##???# # ?# ##=! #????? | | ????????# ###????# ##### # ##???? | | ????????# %#??????# # # ###?? | | ????????# #??????####### #### #?? | | ????????# #????????# =%*## #?# | | ????????# #????????# = # = ## | | ????????# #????????# # | | ????????# #????????# """" # | | ????????# #????????# """" ## | | ????????# #????????# """" | | ????????# #????????# # | | ????????# #????????# """" | | ????????# #????????? """" #= | | ????????# #????????? """" # # | | ????????# #????????? ## # # | | ????????# ##???????# ### ##### | +----------------------------------------------------+ Best States ------------- Heat Dissipation 25 Energy Generation 18 Energy Capacity 265 Matter Stores 300 Matter Capacity 300 Sight Range 16 Terrain Scan Range 16 Terrain Scan Density 10 Utility Shielding 33 Evasion (%) 44 Recoil Reduction 2 Item Schematics ----------------- Hcp. Storage Unit | -10/Materials | Hacked Med. Storage Unit | -10/Mines | Hacked Robot Schematics ------------------ None Fabricated ------------ Nothing Alien Tech Used ----------------- None Achievements -------------- None Challenges ------------ None Game ------ Seed ProcessingNodeNukerbomber Manual? 0 Play Time 00:24:27 Cumulative 180.9 hours Start 2020.09.22 @ 15:38:23 End 2020.09.22 @ 16:37:48 Sessions 1 Manual Loads 0 Difficulty Rogue Special Mode None Game No. 209 Rogue 209 Adventurer 0 Explorer 0 Win Type - Total 2 Types 2/0/0/0/0/0/0/0/0 Lore% 60 Gallery% 73 Achievement% 55 Wizard Run 0 Options --------- ASCII 0 Keyboard 0 Movement Numpad Keybinds 0 Fullscreen 2 Font 24/Smallcaps Map View 76x50 Tactical HUD 1 Map Filters NONE Filters NONE Steam 1 RUN: 30b0205c-18f5-482c-b0d2-1fdbfcbf452c